[Event "Hungarian Youth-ch U14 2022"]
[Site "Eger"]
[Date "2022.07.28"]
[Round "6.9"]
[White "Nandin-Erdene, Davaademberel"]
[Black "Beznicza, Mira"]
[Result "1-0"]
[ECO "C11"]
[WhiteElo "1789"]
[BlackElo "1608"]
[Annotator "NA RC COMBH"]
[PlyCount "147"]
[EventDate "2022.07.21"]
[EventType "tourn"]
[EventCountry "HUN"]
[SourceTitle "playchess.com"]
[Source "ChessBase"]
[SourceQuality "1"]
[TimeControl "40/5400+30:1800+30"]

1. e4 {[%emt 0:00:33]} e6 {[%emt 0:00:38]} 2. d4 {[%emt 0:00:09]} d5 {[%emt 0:00:13]} 3. Nc3 {[%emt 0:00:06]} Nf6 {[%emt 0:00:27]} 4. e5 {[%emt 0:00:10]} Nfd7 {[%emt 0:00:22]} 5. f4 {[%emt 0:00:10]} c5 {[%emt 0:00:42]} 6. Nf3 {[%emt 0:00:13]} Nc6 {[%emt 0:00:48]} 7. Be3 {[%emt 0:00:19]} a6 {[%emt 0:01:14]} 8. Qd2 {[%emt 0:00:33]} b5 {[%emt 0:02:06]} 9. a3 {[%emt 0:00:17]} Be7 {[%emt 0:05:09]} 10. dxc5 {[%emt 0:00:41]} Nxc5 {[%emt 0:06:08]} 11. Qf2 {[%emt 0:00:38]} Nb7 {[%emt 0:03:22]} 12. Bd3 {[%emt 0:02:15]} f6 {[%emt 0:02:20]} 13. exf6 {[%emt 0:09:49]} Bxf6 {[%emt 0:02:24]} 14. Nd4 {[%emt 0:04:16]} Bd7 {[%emt 0:05:26]} 15. O-O {[%emt 0:10:31]} O-O {[%emt 0:06:41]} 16. Nxc6 {[%emt 0:02:38]} Bxc6 {[%emt 0:00:54]} 17. Bd4 {[%emt 0:00:38]} Qe7 {[%emt 0:09:14]} 18. Bxf6 {[%emt 0:02:35]} Rxf6 {[%emt 0:01:51]} 19. Qh4 {[%emt 0:06:12]} Qc5+ {[%emt 0:02:43]} 20. Kh1 {[%emt 0:02:15]} Rh6 {[%emt 0:01:05]} 21. Qg4 {[%emt 0:00:49]} Rf8 {[%emt 0:04:21]} 22. Rf3 {[%emt 0:03:24]} Rff6 {[%emt 0:06:47]} 23. Rg3 {[%emt 0:03:23]} Qe7 {[%emt 0:03:39]} 24. Re1 {[%emt 0:04:03]} Nc5 {[%emt 0:02:00]} 25. Re5 {[%emt 0:16:03]} Nxd3 {[%emt 0:03:33]} 26. Rxd3 {[%emt 0:02:07]} Qf7 {[%emt 0:04:10]} 27. Ne2 {[%emt 0:08:36]} Rf5 {[%emt 0:09:51]} 28. Rxf5 {[%emt 0:02:14]} exf5 {[%emt 0:00:35]} 29. Qg5 {[%emt 0:04:19]} Re6 {[%emt 0:02:04]} 30. Ng1 {[%emt 0:01:07]} Qe8 {[%emt 0:02:30]} 31. Rg3 {[%emt 0:03:52]} Qf7 {[%emt 0:03:52]} 32. Qd8+ {[%emt 0:03:09]} Re8 {[%emt 0:01:01]} 33. Qb6 {[%emt 0:00:23]} Bb7 {[%emt 0:00:15]} 34. Re3 {[%emt 0:01:06]} Rc8 {[%emt 0:02:44]} 35. Qd6 {[%emt 0:01:09]} Re8 {[%emt 0:03:52]} 36. Re5 {[%emt 0:03:16]} g6 {[%emt 0:01:14]} 37. Rxe8+ {[%emt 0:01:03]} Qxe8 {[%emt 0:00:08]} 38. Nf3 {[%emt 0:00:57]} d4 {[%emt 0:00:41]} 39. Ne5 {[%emt 0:01:03]} Qc8 {[%emt 0:01:01]} 40. h3 {[%emt 0:00:00]} Be4 {[%emt 0:00:00]} 41. Qxd4 {[%emt 0:03:38]} Qa8 {[%emt 0:02:43]} 42. Qd2 {[%emt 0:01:22]} Qd5 {[%emt 0:02:34]} 43. Qxd5+ {[%emt 0:03:24]} Bxd5 {[%emt 0:00:09]} 44. Kg1 {[%emt 0:00:20]} Kf8 {[%emt 0:00:35]} 45. Kf2 {[%emt 0:03:03]} Ke7 {[%emt 0:00:55]} 46. g3 {[%emt 0:00:50]} Kd6 {[%emt 0:00:36]} 47. Ke3 {[%emt 0:01:01]} Bg2 {[%emt 0:01:19]} 48. h4 {[%emt 0:00:19]} Be4 {[%emt 0:00:49]} 49. c4 {[%emt 0:07:37]} bxc4 {[%emt 0:05:31]} 50. Nxc4+ {[%emt 0:00:04]} Kc5 {[%emt 0:01:02]} 51. Ne5 {[%emt 0:00:39]} Kd6 {[%emt 0:01:14]} 52. Kd4 {[%emt 0:00:14]} Bd5 {[%emt 0:00:57]} 53. b4 {[%emt 0:01:51]} Bb3 {[%emt 0:01:33]} 54. Nd3 {[%emt 0:01:18]} Be6 {[%emt 0:02:18]} 55. Nc5 {[%emt 0:00:56]} Bc8 {[%emt 0:00:12]} 56. a4 {[%emt 0:00:22]} h6 {[%emt 0:01:15]} 57. b5 {[%emt 0:01:15]} axb5 {[%emt 0:00:25]} 58. axb5 {[%emt 0:00:10]} h5 {[%emt 0:00:10]} 59. Kc4 {[%emt 0:01:14]} Kc7 {[%emt 0:00:45]} 60. Na4 {[%emt 0:00:57]} Kd6 {[%emt 0:02:38]} 61. Nc3 {[%emt 0:01:35]} Be6+ {[%emt 0:01:43]} 62. Kb4 {[%emt 0:00:18]} Kd7 {[%emt 0:01:17]} 63. Kc5 {[%emt 0:01:00]} Kc7 {[%emt 0:00:17]} 64. b6+ {[%emt 0:00:15]} Kb7 {[%emt 0:00:18]} 65. Nb5 {[%emt 0:00:11]} Bd7 {[%emt 0:00:49]} 66. Nd6+ {[%emt 0:01:25]} Kb8 {[%emt 0:00:19]} 67. Nf7 {[%emt 0:00:22]} Be8 {[%emt 0:00:35]} 68. Nd8 {[%emt 0:02:37]} Kc8 {[%emt 0:01:37]} 69. Kd6 {[%emt 0:00:19]} Bb5 {[%emt 0:00:38]} 70. b7+ {[%emt 0:00:52]} Kb8 {[%emt 0:00:17]} 71. Ke7 {[%emt 0:00:18]} Ba6 {[%emt 0:00:15]} 72. Kf6 {[%emt 0:00:13]} Bxb7 {[%emt 0:00:08]} 73. Nxb7 {[%emt 0:00:07]} Kxb7 {[%emt 0:00:04]} 74. Kxg6 {[%emt 0:00:04]} 1-0

[Event "Hungarian Youth-ch U14 2022"]
[Site "Eger"]
[Date "2022.07.28"]
[Round "6.10"]
[White "Karacsonyi, Luca"]
[Black "Horvath, Greta"]
[Result "1-0"]
[ECO "C55"]
[WhiteElo "1789"]
[BlackElo "1346"]
[Annotator "NA RC COMBH"]
[PlyCount "65"]
[EventDate "2022.07.21"]
[EventType "tourn"]
[EventCountry "HUN"]
[SourceTitle "playchess.com"]
[Source "ChessBase"]
[SourceQuality "1"]
[TimeControl "40/5400+30:1800+30"]

1. e4 {[%emt 0:00:33]} e5 {[%emt 0:00:35]} 2. Nf3 {[%emt 0:00:05]} Nc6 {[%emt 0:00:05]} 3. Bc4 {[%emt 0:00:05]} Nf6 {[%emt 0:00:10]} 4. d4 {[%emt 0:00:06]} exd4 {[%emt 0:01:28]} 5. O-O {[%emt 0:00:12]} Bc5 {[%emt 0:04:07]} 6. e5 {[%emt 0:00:14]} d5 {[%emt 0:03:38]} 7. exf6 {[%emt 0:00:08]} dxc4 {[%emt 0:00:34]} 8. fxg7 {[%emt 0:00:08]} Rg8 {[%emt 0:01:26]} 9. Bg5 {[%emt 0:00:09]} Qd6 {[%emt 0:05:16]} 10. Re1+ {[%emt 0:00:43]} Be6 {[%emt 0:02:11]} 11. Nbd2 {[%emt 0:00:23]} f5 {[%emt 0:19:32]} 12. Nxc4 {[%emt 0:02:47]} Qd7 {[%emt 0:08:43]} 13. Qe2 {[%emt 0:03:21]} Rxg7 {[%emt 0:06:06]} 14. Qxe6+ {[%emt 0:01:10]} Qxe6 {[%emt 0:01:08]} 15. Rxe6+ {[%emt 0:00:07]} Kd7 {[%emt 0:01:05]} 16. Re2 {[%emt 0:01:51]} b5 {[%emt 0:01:56]} 17. Nce5+ {[%emt 0:01:06]} Nxe5 {[%emt 0:00:29]} 18. Rxe5 {[%emt 0:01:07]} Kd6 {[%emt 0:01:34]} 19. Bf4 {[%emt 0:01:28]} Kc6 {[%emt 0:01:12]} 20. Rxf5 {[%emt 0:00:32]} Re8 {[%emt 0:01:20]} 21. Re1 {[%emt 0:00:58]} Rge7 {[%emt 0:01:06]} 22. Rxe7 {[%emt 0:01:05]} Rxe7 {[%emt 0:00:13]} 23. Re5 {[%emt 0:00:18]} Rd7 {[%emt 0:00:33]} 24. Rf5 {[%emt 0:02:40]} Re7 {[%emt 0:01:50]} 25. Ne5+ {[%emt 0:00:32]} Kb7 {[%emt 0:00:31]} 26. Rf7 {[%emt 0:00:15]} Re6 {[%emt 0:00:42]} 27. Nd3 {[%emt 0:01:02]} Rc6 {[%emt 0:01:07]} 28. Nxc5+ {[%emt 0:00:06]} Rxc5 {[%emt 0:00:11]} 29. Rxh7 {[%emt 0:00:30]} Rxc2 {[%emt 0:00:52]} 30. Rxc7+ {[%emt 0:00:07]} Rxc7 {[%emt 0:00:09]} 31. Bxc7 {[%emt 0:00:04]} Kxc7 {[%emt 0:00:08]} 32. Kf1 {[%emt 0:00:06]} d3 {[%emt 0:00:16]} 33. Ke1 {[%emt 0:00:05]} 1-0

[Event "Hungarian Youth-ch U14 2022"]
[Site "Eger"]
[Date "2022.07.29"]
[Round "7.2"]
[White "Szakmary, Domonkos"]
[Black "Gergely, Daniel"]
[Result "1/2-1/2"]
[ECO "B36"]
[WhiteElo "1967"]
[BlackElo "2053"]
[Annotator "TA"]
[PlyCount "94"]
[EventDate "2022.07.21"]
[EventType "tourn"]
[EventCountry "HUN"]
[SourceTitle "playchess.com"]
[Source "ChessBase"]
[SourceQuality "1"]
[TimeControl "40/5400+30:1800+30"]

{[%evp 16,94,52,38,59,12,42,14,49,37,41,-5,99,60,63,51,39,35,57,62,97,107,101,111,106,115,154,104,204,142,132,62,64,64,64,-8,-8,-45,-45,-45,-45,-45,-45,-45,-45,-45,-45,-45,-45,-45,-45,-45,-45,-45,-45,-45,-45,-45,-45,-45,-45,-45,-45,-45,-45,-45,-45,-45,-45,-45,-25,-25,-25,-25,-25,-25,-25,-25,-25,-25,-25]} 1. e4 {[%emt 0:00:31]} c5 {[%emt 0:00:34]} 2. Nf3 {[%emt 0:00:04]} Nc6 {[%emt 0:00:07]} 3. d4 {[%emt 0:00:02]} cxd4 {[%emt 0:00:09]} 4. Nxd4 {[%emt 0:00:03]} g6 {[%emt 0:00:12]} 5. c4 {[%emt 0:00:14]} Nf6 {[%emt 0:00:15]} 6. Nc3 {[%emt 0:00:05]} d6 {[%emt 0:00:08]} 7. Be2 {[%emt 0:00:05]} Bg7 {[%emt 0:00:08]} 8. Be3 {[%emt 0:02:55]} O-O {[%emt 0:00:24]} 9. Qd2 {[%emt 0:00:11]} Bd7 {[%emt 0:00:32] B38: Sicilian: Maroczy Bind with 5...Bg7 and 7...0-0.} 10. Nc2 {[%emt 0:00:44]} (10. O-O $14 {feels stronger.}) 10... Rc8 {[%emt 0:02:14]} 11. Rc1 {[%emt 0:02:21]} a6 {[%emt 0:02:00] The position is equal.} 12. f3 {[%emt 0:03:22]} Ne5 {[%emt 0:14:18]} 13. b3 {[%emt 0:02:33] [#]} (13. Na3) (13. Na3 $1 $14 {was preferrable.}) 13... Rb8 $146 {[%emt 0:05:53]} (13... b5) (13... b5 $1 $11 {keeps the balance.}) ({Predecessor:} 13... b5 14. Bd4 bxc4 15. Bxe5 cxb3 16. axb3 dxe5 17. Bxa6 Rb8 {½-½ (17) Nekrasov,M (2359)-Urytskyy,A (2176) Templin 2017}) 14. Nd4 {[%emt 0:07:05]} Qa5 {[%emt 0:03:03]} 15. Nd5 {[%emt 0:06:31]} Qxd2+ {[%emt 0:02:23]} 16. Kxd2 {[%emt 0:00:14]} Nxd5 {[%emt 0:00:38]} 17. cxd5 {[%emt 0:02:01]} Rbc8 {[%emt 0:03:38]} (17... e6) 18. h3 {[%emt 0:10:25] Hoping for f4.} f5 {[%emt 0:08:00]} 19. f4 {[%emt 0:06:23]} Nf7 {[%emt 0:02:56]} 20. exf5 {[%emt 0:01:33]} gxf5 {[%emt 0:11:22]} 21. g4 {[%emt 0:06:29]} (21. Ne6 Rxc1 22. Rxc1) (21. Ne6 $142 Rxc1 22. Rxc1) 21... Nh8 {[%emt 0:11:01]} (21... Rc5) (21... Rc5 $16 {was necessary.}) 22. Rxc8 {[%emt 0:17:42]} (22. gxf5 Bxd4 23. Bxd4 Bxf5) (22. gxf5 Bxd4 23. Bxd4 Bxf5 $16) 22... Bxc8 {[%emt 0:01:46]} 23. Bd3 {[%emt 0:03:16] White is more active.} (23. Ne6 Bxe6 24. dxe6) (23. Ne6 $16 Bxe6 24. dxe6) 23... Bxd4 $14 {[%emt 0:08:38]} (23... fxg4 24. hxg4 Ng6 25. Nf5) (23... fxg4 $2 24. hxg4 Ng6 25. Nf5 $16) 24. Bxd4 {[%emt 0:00:22]} Ng6 {[%emt 0:00:12]} 25. Ke3 {[%emt 0:10:10]} (25. Rf1) (25. Rf1 $1 $14) 25... fxg4 $11 {[%emt 0:08:01]} 26. Bxg6 {[%emt 0:04:18]} hxg6 {[%emt 0:00:17]} 27. hxg4 {[%emt 0:00:05]} Bxg4 {[%emt 0:00:08][%mdl 4096] Endgame KRB-KRB} 28. Rh8+ {[%emt 0:01:19]} Kf7 {[%emt 0:00:06]} 29. Rxf8+ {[%emt 0:00:59]} Kxf8 $15 {[%emt 0:00:08] KB-KB} 30. Bc3 {[%emt 0:00:57]} Kf7 {[%emt 0:01:15]} 31. Kd4 {[%emt 0:01:18]} Bf3 {[%emt 0:00:50]} 32. Be1 {[%emt 0:01:15]} e6 {[%emt 0:01:59]} 33. Bb4 {[%emt 0:01:34]} Ke7 {[%emt 0:00:43]} 34. dxe6 {[%emt 0:00:05]} Kxe6 {[%emt 0:00:07]} 35. Bd2 {[%emt 0:01:12]} b6 {[%emt 0:03:06]} 36. b4 {[%emt 0:02:19]} b5 {[%emt 0:00:33]} 37. a3 {[%emt 0:00:35]} Bc6 {[%emt 0:01:08]} 38. Be1 {[%emt 0:00:48]} Kf5 {[%emt 0:00:18]} 39. Bd2 {[%emt 0:00:38]} Kg4 {[%emt 0:00:25]} 40. Ke3 {[%emt 0:00:00]} Bd5 {[%emt 0:00:00]} 41. Bc3 {[%emt 0:02:01]} Bc4 {[%emt 0:02:14]} 42. Bf6 {[%emt 0:01:36]} Kg3 {[%emt 0:00:48]} 43. Be7 {[%emt 0:01:48] Black has an edge.} d5 {[%emt 0:00:08]} 44. Bf6 {[%emt 0:00:31]} Kg2 {[%emt 0:01:13]} 45. Bh4 {[%emt 0:01:15]} Kh3 {[%emt 0:00:37]} 46. Bf6 {[%emt 0:00:11]} Kg3 {[%emt 0:00:06]} 47. Bg5 {[%emt 0:00:59]} Kg4 {[%emt 0:01:21] Weighted Error Value: White=0.16 (very precise) /Black=0.15 (very precise)} 1/2-1/2

[Event "Hungarian Youth-ch U14 2022"]
[Site "Eger"]
[Date "2022.07.29"]
[Round "7.3"]
[White "Turcsanyi, Vince Gergo"]
[Black "Megyaszai, Balazs"]
[Result "1/2-1/2"]
[ECO "B90"]
[WhiteElo "2117"]
[BlackElo "1919"]
[Annotator "TA"]
[PlyCount "125"]
[EventDate "2022.07.21"]
[EventType "tourn"]
[EventCountry "HUN"]
[SourceTitle "playchess.com"]
[Source "ChessBase"]
[SourceQuality "1"]
[TimeControl "40/5400+30:1800+30"]

{[%evp 13,125,19,26,0,50,21,23,0,0,0,21,25,39,37,66,61,64,64,60,54,56,31,31,0,20,-59,46,-19,50,40,54,41,30,0,0,-54,0,-89,-87,-262,184,180,200,-77,0,-31,0,0,0,0,0,-16,-12,-187,-183,-177,-33,-43,-54,-115,0,-272,-271,-262,-102,-92,-72,-44,0,-47,-15,-75,-37,-41,-40,-45,-63,-210,-90,-187,-194,-250,-273,-243,-248,-297,-351,-530,-496,-475,-462,-578,-576,-548,-552,-581,-573,-568,-552,-518,-595,-564,-456,-651,-612,-573,-120,-130,-123,-125,-133,-108,-120,-283]} 1. e4 {[%emt 0:00:33]} c5 {[%emt 0:00:38]} 2. Nf3 {[%emt 0:00:35]} d6 {[%emt 0:00:15]} 3. d4 {[%emt 0:00:07]} cxd4 {[%emt 0:00:07]} 4. Nxd4 {[%emt 0:00:07]} Nf6 {[%emt 0:00:14]} 5. Nc3 {[%emt 0:00:11]} a6 {[%emt 0:00:09]} 6. Be3 {[%emt 0:00:09]} e5 {[%emt 0:00:22]} 7. Nb3 {[%emt 0:00:12]} Be6 {[%emt 0:00:21]} 8. h3 {[%emt 0:00:16] B90: Sicilian Najdorf: Unusual White 6th moves, 6 Be3 Ng4 and 6 Be3 e5.} h5 {[%emt 0:05:36]} (8... Be7 $11) 9. Qf3 {[%emt 0:01:49]} Nbd7 {[%emt 0:06:51]} 10. O-O-O {[%emt 0:04:19] White has an edge.} b5 {[%emt 0:09:49] [#]} 11. Bd3 $146 {[%emt 0:10:59]} ({Predecessor:} 11. Kb1 Qc7 12. Rg1 b4 13. Nd5 Bxd5 14. exd5 a5 15. g4 a4 16. Nd2 a3 17. g5 {1-0 (24) Ferreira,V (2123)-Rodchenkov,S (2346) Chess.com INT 2021}) 11... h4 {[%emt 0:11:04]} 12. Kb1 {[%emt 0:04:15]} Rc8 {[%emt 0:16:02][%cal Oc8c3]} 13. Nd5 {[%emt 0:07:10]} Bxd5 {[%emt 0:04:01]} 14. exd5 {[%emt 0:00:16]} g6 {[%emt 0:02:00][%cal Oe5e4]} 15. g4 {[%emt 0:22:30] White is more active.} Be7 {[%emt 0:08:26]} 16. Qg2 {[%emt 0:06:47]} Nb6 {[%emt 0:08:10]} 17. Bxb6 {[%emt 0:10:10]} Qxb6 {[%emt 0:00:16]} 18. Rhf1 {[%emt 0:01:27]} (18. f4) 18... Nd7 {[%emt 0:06:24]} (18... O-O) 19. Nd2 {[%emt 0:12:29]} (19. Rde1 $11) 19... O-O {[%emt 0:02:24]} (19... Bg5) (19... Bg5 $1 $15) 20. Ne4 {[%emt 0:01:45]} (20. g5) ({White should play} 20. g5 $14) 20... Nc5 {[%emt 0:02:55]} (20... Qb7) (20... Qb7 $11) 21. g5 $1 $14 {[%emt 0:03:28]} Nxe4 {[%emt 0:03:34]} 22. Bxe4 {[%emt 0:00:07]} a5 {[%emt 0:02:24][%cal Ba6a5,Ba5a4][%mdl 32]} 23. Qg4 {[%emt 0:01:01]} Rc4 {[%emt 0:00:54]} 24. f3 {[%emt 0:01:24]} (24. Rde1 $11 Qd8 25. Rg1) 24... Qe3 {[%emt 0:00:43]} ({Black should try} 24... a4 $15) 25. Rg1 {[%emt 0:00:12]} (25. Qd7 $11 {remains equal.} Qxg5 26. Rg1) 25... a4 $1 $17 {[%emt 0:03:47]} 26. Qd7 $2 {[%emt 0:06:30] [#]} (26. Rge1 $17 Qc5 27. Qg1) 26... Bxg5 $4 {[%emt 0:02:39][%mdl 8192]} (26... Rb4 $1 $19 {[%cal Oe3c3] Strongly threatening ...Qc3!} 27. Qc6 (27. Qxe7 $2 Qc3 $19) 27... a3) 27. Qxd6 $18 {[%emt 0:01:36][%cal Oe4g6]} Kg7 {[%emt 0:01:28]} 28. Rge1 $2 {[%emt 0:02:22] [#]} ({White has to play} 28. Qxe5+ $18 Kh6 29. Rg4 (29. d6 Rc5 $16)) 28... Qf2 {[%emt 0:00:54]} (28... Qa7 $1 $17) 29. Bd3 {[%emt 0:00:43] Really sharp!} (29. Qxe5+ $2 Bf6 30. Qd6 Rd8 $19) (29. Rg1 $5 {[%cal Rg1g5]} Rd8 30. Qa6 $11 (30. Qxe5+ Bf6 $11)) 29... Rcc8 {[%emt 0:00:38]} 30. Qxe5+ {[%emt 0:00:28]} Bf6 {[%emt 0:00:01]} 31. Qe3 {[%emt 0:00:13]} Qh2 {[%emt 0:00:59]} 32. f4 {[%emt 0:01:46]} (32. Re2 $5 {[%cal Re2h2]} Qxh3 33. Bxb5 $16) 32... Rfe8 $1 {[%emt 0:00:48]} 33. Qxe8 {[%emt 0:00:31]} (33. Re2 $1 $11 Rxe3 34. Rxh2) 33... Rxe8 $19 {[%emt 0:00:05]} 34. Rxe8 {[%emt 0:00:01]} Qxf4 {[%emt 0:00:08]} (34... a3 $19 35. Be2 (35. bxa3 $2 Qxh3 36. Re4 Qc8 $19) (35. Bxb5 Qxh3 36. Ree1 Bxb2 $19) 35... Qxf4) 35. Re4 $1 $15 {[%emt 0:01:00]} ({Wrong is} 35. Bxb5 $2 Qb4 36. c3 Bxc3 $19) 35... Qf5 {[%emt 0:02:04][%csl LRd5,LRh3]} 36. d6 {[%emt 0:00:26]} (36. Rg4 $15 Qxd5 37. a3) 36... Qd5 {[%emt 0:00:17]} (36... Qxh3 $17 {[%cal Oa4a3] Threatens to win with ...a3!} 37. Rf4 Qd7) 37. Ree1 $2 {[%emt 0:00:33][%mdl 8192]} (37. Rf4 $11 {and White stays safe.} Bg5 38. Rg4) 37... Qxd6 $19 {[%emt 0:00:31]} 38. c3 {[%emt 0:00:07][%cal Od3g6] Prevents Qb4.} Qc5 $2 {[%emt 0:00:21]} (38... Qh2 $19 {has better winning chances. White must now prevent ...a3.} 39. Rh1 Qe5) 39. a3 $17 {[%emt 0:00:27]} Qc8 {[%emt 0:00:41]} 40. Re3 {[%emt 0:00:00]} Qc5 {[%emt 0:00:00]} 41. Rf3 {[%emt 0:03:04]} (41. Ree1 $1 $11) 41... Bg5 {[%emt 0:08:45]} 42. Bc2 {[%emt 0:06:40]} (42. Bf1 $11 {keeps the balance.}) 42... f5 {[%emt 0:06:17]} (42... Qc6 $5 {[%cal Rc6f3]} 43. Rff1 f5 $17) 43. Rfd3 {[%emt 0:05:46]} Qf2 {[%emt 0:02:46]} 44. Rd7+ {[%emt 0:04:43]} Kh6 $1 {[%emt 0:01:41]} 45. R7d5 {[%emt 0:00:13]} ({Better is} 45. Bd3 $15) 45... Qg3 {[%emt 0:04:31]} (45... Qh2 $19 46. Rxb5 Qxh3 47. Bxa4 Qf3) 46. Rxb5 {[%emt 0:09:03]} (46. Rh1 $17 {was the only defense.}) 46... Qxh3 $19 {[%emt 0:02:18] aiming for ...Qg4.} 47. Re5 {[%emt 0:01:09]} (47. Rbd5 $142) 47... Qg4 {[%emt 0:02:22] Hoping for ...h3.} 48. Ree1 {[%emt 0:01:35]} h3 {[%emt 0:01:27][%cal Bh4h3,Bh3h2][%mdl 32]} 49. Rg1 {[%emt 0:00:37]} Qh4 {[%emt 0:01:06]} 50. Rd4 {[%emt 0:02:32]} (50. Rd3 $142) 50... Qf2 {[%emt 0:01:01]} 51. Rh1 {[%emt 0:00:06]} Qg2 {[%emt 0:00:53]} 52. Rdd1 {[%emt 0:00:06]} h2 {[%emt 0:00:25] Inhibits Rdg1.} 53. Bxa4 {[%emt 0:00:20]} Be3 {[%emt 0:00:30]} 54. Bb3 {[%emt 0:00:18]} Bg1 {[%emt 0:02:03]} 55. Bd5 {[%emt 0:00:06]} Qf2 {[%emt 0:00:32]} 56. Rc1 {[%emt 0:01:31]} Qe3 {[%emt 0:01:19]} 57. c4 {[%emt 0:00:56]} f4 {[%emt 0:00:43] ...g5 is the strong threat.} 58. c5 {[%emt 0:00:51]} (58. Rc3 $142 Qe5 59. Rh3+ Kg7 60. R3xh2 Bxh2 61. Rxh2) 58... Qd3+ {[%emt 0:00:21]} 59. Ka1 {[%emt 0:00:04] [#]} Qxd5 $2 {[%emt 0:01:04]} (59... Kg7 $1 $19 {and Black stays clearly on top.} 60. Bb7 f3) 60. Rcxg1 $17 {[%emt 0:01:17]} Qxc5 {[%emt 0:00:28]} 61. Rxh2+ {[%emt 0:00:10]} Kg7 {[%emt 0:00:02]} 62. Rhg2 {[%emt 0:00:36]} Qf5 {[%emt 0:00:18][%mdl 1024] Black has strong compensation.} 63. a4 $2 {[%emt 0:00:44][%mdl 32768] Weighted Error Value: White=0.49/Black=0.39. An unexpected result.} (63. Rg5 $17 Qe4 64. R5g2) 1/2-1/2

[Event "Hungarian Youth-ch U14 2022"]
[Site "Eger"]
[Date "2022.07.29"]
[Round "7.4"]
[White "Matyassy, Lazar"]
[Black "Bodrogi, Bendeguz"]
[Result "1/2-1/2"]
[ECO "B31"]
[WhiteElo "2132"]
[BlackElo "2170"]
[Annotator "TA"]
[PlyCount "45"]
[EventDate "2022.07.21"]
[EventType "tourn"]
[EventCountry "HUN"]
[SourceTitle "playchess.com"]
[Source "ChessBase"]
[SourceQuality "1"]
[TimeControl "40/5400+30:1800+30"]

{[%evp 13,45,20,24,33,18,29,32,19,64,29,43,0,11,2,10,10,19,10,19,14,27,27,27,19,20,0,0,0,0,0,39,36,47,47]} 1. e4 {[%emt 0:00:35]} c5 {[%emt 0:00:35]} 2. Nf3 {[%emt 0:00:08]} Nc6 {[%emt 0:00:03]} 3. Bb5 {[%emt 0:00:07]} g6 {[%emt 0:00:05]} 4. O-O {[%emt 0:00:08]} Bg7 {[%emt 0:00:04]} 5. Re1 {[%emt 0:00:19]} e5 {[%emt 0:06:52]} 6. Bxc6 {[%emt 0:00:22]} dxc6 {[%emt 0:00:07]} 7. d3 {[%emt 0:00:10]} Qc7 {[%emt 0:03:47]} 8. Be3 {[%emt 0:01:30] B31: Sicilian: 2...Nc6 3 Bb5 g6.} b6 {[%emt 0:00:07]} 9. a3 {[%emt 0:00:25]} a5 {[%emt 0:01:32]} 10. Nbd2 {[%emt 0:01:28][%cal Ob2b4]} Ne7 {[%emt 0:07:23]} 11. Nc4 {[%emt 0:08:54][%cal Ob2b4]} Be6 {[%emt 0:16:09] [#]} 12. Ng5 $146 {[%emt 0:24:44]} (12. b4 $5) ({Predecessor:} 12. b4 Bxc4 13. dxc4 axb4 14. axb4 Rxa1 15. Qb1 Rxb1 {0-1 (15) Maze,S (2546)-Harsha,B (2509) Chess.com INT 2021}) 12... Bxc4 {[%emt 0:04:38]} 13. dxc4 {[%emt 0:00:07]} O-O {[%emt 0:00:08]} 14. a4 {[%emt 0:21:11]} h6 {[%emt 0:06:07]} 15. Nf3 {[%emt 0:05:05]} Rad8 {[%emt 0:01:44][%cal Ba8d8,Bd8d7,Bd7d1][%mdl 32]} 16. Qe2 {[%emt 0:00:58]} Rd7 {[%emt 0:00:57]} 17. Bd2 {[%emt 0:05:50]} Rfd8 {[%emt 0:06:36]} 18. Bc3 {[%emt 0:00:23]} Qd6 {[%emt 0:01:05]} 19. Rad1 {[%emt 0:05:45]} Qxd1 {[%emt 0:00:13]} 20. Rxd1 {[%emt 0:00:10]} Rxd1+ {[%emt 0:00:08]} 21. Ne1 {[%emt 0:00:06]} g5 {[%emt 0:17:11]} 22. g3 {[%emt 0:01:24][%mdl 1024] White has compensation.} Ng6 {[%emt 0:00:04]} 23. Kg2 {[%emt 0:02:53] Weighted Error Value: White=0.08 (flawless) /Black=0.11 (very precise)} 1/2-1/2

[Event "Hungarian Youth-ch U14 2022"]
[Site "Eger"]
[Date "2022.07.29"]
[Round "7.5"]
[White "Csernyik, Mark"]
[Black "Giang, Tran Nam"]
[Result "1/2-1/2"]
[ECO "D26"]
[WhiteElo "2022"]
[BlackElo "2144"]
[Annotator "TA"]
[PlyCount "44"]
[EventDate "2022.07.21"]
[EventType "tourn"]
[EventCountry "HUN"]
[SourceTitle "playchess.com"]
[Source "ChessBase"]
[SourceQuality "1"]
[TimeControl "40/5400+30:1800+30"]

{[%evp 15,44,5,4,-54,-42,-45,-24,-19,-18,-35,-37,-56,-24,-57,-9,-35,0,0,0,-9,0,-6,-8,-48,-46,-36,-38,-41,0,0,0]} 1. Nf3 {[%emt 0:01:44]} d5 {[%emt 0:00:41]} 2. d4 {[%emt 0:00:10]} Nf6 {[%emt 0:00:05]} 3. c4 {[%emt 0:00:05]} dxc4 {[%emt 0:00:04]} 4. e3 {[%emt 0:00:04]} e6 {[%emt 0:00:03]} 5. Bxc4 {[%emt 0:00:51]} a6 {[%emt 0:00:13]} 6. O-O {[%emt 0:04:16]} c5 {[%emt 0:00:12]} 7. Bb3 {[%emt 0:00:48]} b5 {[%emt 0:12:04]} 8. Nc3 {[%emt 0:06:21]} Bb7 {[%emt 0:00:39]} 9. Ne5 {[%emt 0:06:14] 9.e4 is becoming the main line. D27: Queen's Gambit Accepted: Classical main line: 7 e4!? and 7 a4.} (9. e4 $11) 9... Nbd7 {[%emt 0:06:53]} 10. f4 {[%emt 0:03:09] [#]} Qc7 $146 {[%emt 0:18:47]} ({Predecessor:} 10... Qb6 11. Nxd7 Nxd7 12. f5 e5 13. dxc5 Nxc5 14. Bc2 Rd8 15. Qh5 b4 {0-1 (45) Ghane Gardeh,S (2408)-Capo Vidal,U (2340) Dresden 2008}) 11. Bd2 {[%emt 0:06:37] Black has an edge.} Be7 {[%emt 0:06:51]} 12. Rc1 {[%emt 0:04:09]} O-O {[%emt 0:05:06]} 13. Bc2 {[%emt 0:04:01]} Rfd8 {[%emt 0:01:57]} 14. Qe2 {[%emt 0:03:35][%cal Ob2b4]} Nf8 {[%emt 0:07:11]} (14... Rac8 $15 {is superior.}) 15. dxc5 {[%emt 0:04:17]} Qxc5 {[%emt 0:06:15]} 16. Ne4 $1 {[%emt 0:06:09]} Qb6 {[%emt 0:12:01]} 17. Nxf6+ {[%emt 0:02:15]} Bxf6 {[%emt 0:00:15]} 18. Bc3 {[%emt 0:00:48]} Ng6 {[%emt 0:05:10]} 19. Rcd1 {[%emt 0:15:45]} Rxd1 {[%emt 0:02:22]} 20. Bxd1 {[%emt 0:00:34] [#] Strongly threatening Nd7.} Rd8 {[%emt 0:03:38] Against Nd7} 21. Bc2 {[%emt 0:01:43]} Nh4 {[%emt 0:04:05]} 22. Bxh7+ {[%emt 0:01:56]} Kxh7 {Weighted Error Value: White=0.17 (very precise) /Black=0.14 (very precise)} 1/2-1/2